fUSD/lending_fUSD_20260314
["ID","MTS","AMOUNT","RATE_DAILY","PERIOD"]
[408378143,1773531044923,-500.0,0.0001898,2]
[408378144,1773531044932,-500.0,0.0001898,2]
[408378145,1773531044941,-500.0,0.0001898,2]
[408378146,1773531044950,-500.0,0.0001898,2]
[408378147,1773531044959,-500.0,0.0001898,2]
[408378148,1773531044969,-500.0,0.0001898,2]
[408378149,1773531044979,-500.0,0.0001898,2]
[408378150,1773531044988,-647.80367893,0.0001898,2]
[408378151,1773531044997,-500.0,0.0001898,2]
[408378152,1773531045006,-500.0,0.0001898,2]
[408378153,1773531045016,-500.0,0.0001898,2]
[408378154,1773531045025,-500.0,0.0001898,2]
[408378155,1773531045175,-500.0,0.0001898,2]
[408378156,1773531045184,-500.0,0.0001898,2]
[408378157,1773531045194,-831.11488586,0.0001898,2]
[408378158,1773531045204,-500.0,0.0001898,2]
[408378159,1773531045215,-500.0,0.0001898,2]
[408378160,1773531045226,-500.0,0.0001898,2]
[408378161,1773531045236,-500.0,0.0001898,2]
[408378163,1773531045245,-500.0,0.0001898,2]
[408378164,1773531045255,-508.29721167,0.0001898,2]
[408378165,1773531045264,-500.0,0.0001898,2]
[408378166,1773531045274,-500.0,0.0001898,2]
[408378167,1773531045284,-500.0,0.0001898,2]
[408378168,1773531045295,-500.0,0.0001898,2]
[408378169,1773531045304,-500.0,0.0001898,2]
[408378170,1773531045315,-500.0,0.0001898,2]
[408378171,1773531045326,-500.0,0.0001898,2]
[408378172,1773531045337,-500.0,0.0001898,2]
[408378173,1773531045346,-500.0,0.0001898,2]
[408378174,1773531045356,-821.26386328,0.0001898,2]
[408378175,1773531045366,-500.0,0.0001898,2]
[408378176,1773531045375,-800.0,0.0001898,2]
[408378177,1773531045385,-500.0,0.0001898,2]
[408378178,1773531045394,-500.0,0.0001898,2]
[408378179,1773531045404,-500.0,0.0001898,2]
[408378180,1773531045414,-500.0,0.0001898,2]
[408378181,1773531045424,-813.81891238,0.0001898,2]
[408378182,1773531045433,-500.0,0.0001898,2]
[408378183,1773531045443,-500.0,0.0001898,2]
[408378184,1773531045452,-500.0,0.0001898,2]
[408378185,1773531045462,-500.0,0.0001898,2]
[408378186,1773531045471,-500.0,0.0001898,2]
[408378187,1773531045481,-500.0,0.0001898,2]
[408378188,1773531045491,-933.22296823,0.0001898,2]
[408378189,1773531045501,-350.0,0.00019,2]
[408378190,1773531045511,-848.0,0.0001904,2]
[408378191,1773531045520,-858.0,0.0001904,2]
[408378192,1773531045530,-268.0,0.00019105,2]
[408378193,1773531045539,-168.04,0.00019117,2]
[408378194,1773531045549,-572.0,0.00019154,2]
[408378195,1773531045559,-268.0,0.00019166,2]
[408378196,1773531045569,-900.0,0.00019178,7]
[408378197,1773531045578,-2600.0,0.00019178,7]
[408378198,1773531045590,-781.59,0.00019195,2]
[408378199,1773531045599,-2000.0,0.000192,2]
[408378200,1773531045608,-308.07062233,0.00019208,2]
[408378201,1773531045618,-10472.17888599,0.00019249,2]
[408378202,1773531045628,-6510.5067606,0.00019271,2]
[408378203,1773531045638,-268.0,0.00019432,2]
[408378204,1773531045647,-268.0,0.00019444,2]
[408378205,1773531045657,-1300.0,0.00019452,7]
[408378206,1773531045667,-182.07,0.0001946,2]
[408378207,1773531045676,-925.33,0.00019783,2]
[408378208,1773531045686,-1100.0,0.000198,7]
[408378209,1773531045696,-168.04,0.00019852,2]
[408378211,1773531045705,-268.0,0.00019866,2]
[408378212,1773531045715,-371.20890157,0.000199,7]
[408378213,1773531045724,-453.87080226,0.000199,2]
[408378214,1773531045733,-6510.5067606,0.000199,2]
[408378215,1773531045742,-200.0,0.000199,7]
[408378216,1773531045752,-10472.17888599,0.000199,2]
[408378217,1773531045761,-268.0,0.00019931,2]
[408378218,1773531045771,-268.0,0.0001996,2]
[408378219,1773531045780,-400.0,0.0001997,2]
[408378220,1773531045790,-400.0,0.0001997,2]
[408378221,1773531045799,-491.19622483,0.00019973,2]
[408378222,1773531045808,-24595.5750673,0.00019974,2]
[408378223,1773531045817,-8521.8510893,0.00019974,2]
[408378224,1773531045826,-384147.3290401,0.00019974,2]
[408378225,1773531045835,-268.0,0.00019977,2]
[408378226,1773531045844,-803416.65979197,0.0002,2]
[408378227,1773531045863,-589.89471263,0.0002,2]
[408378228,1773531045874,-4783.16358,0.0002,2]
[408378230,1773531045885,-622.53202637,0.0002,2]
[408378233,1773531045896,-1386.70499995,0.0002,2]
[408378237,1773531046016,-1343.0,0.00017702,2]
[408378239,1773531046026,-708225.67492661,0.0002,2]
[408378241,1773531046038,-3038.3,0.0002,2]
[408378248,1773531046121,-151.0,0.00014634,2]
[408378249,1773531046131,-809.3060552,0.000199,2]
[408378250,1773531046141,-19233.40483844,0.0002,2]
[408378251,1773531046150,-28718.42398608,0.0002,2]
[408378252,1773531046564,-768.5510635,0.0002,2]
[408378253,1773531046576,-390.35188999,0.0002,2]
[408378254,1773531092664,198.40163113,0.00013937,2]
[408378255,1773531163993,2722.16177226,0.00013937,2]
[408378256,1773531214315,-836.2829237,0.00013978,2]
[408378257,1773531245919,500.0,0.00013899,2]
[408378258,1773531246294,500.0,0.00013899,2]
[408378259,1773531250948,281.29286691,0.00013937,2]
[408378260,1773531268430,10000.01,0.00013937,2]
[408378261,1773531268455,1452.78792145,0.00013937,2]
[408378262,1773531288592,5000.73,0.00013798,2]
[408378263,1773531300389,306.333911,0.00013429,2]
[408378264,1773531305806,500.0,0.00013899,2]
[408378265,1773531306042,500.0,0.00013899,2]
[408378266,1773531316622,336.0330304,0.00013937,2]
[408378267,1773531324668,500.0,0.00013936,2]
[408378268,1773531342474,172.58490105,0.00013937,2]
[408378269,1773531346601,1231.5402361,0.00013775,2]
[408378270,1773531346624,6502.2797639,0.00013775,2]
[408378271,1773531381257,187.52857794,0.00013937,2]
[408378272,1773531386042,2500.0,0.00013937,2]
[408378273,1773531388518,810.20165816,0.00013937,2]
[408378274,1773531388541,6824.99695614,0.00013937,2]
[408378275,1773531404250,3175.01304386,0.00013937,2]
[408378276,1773531404273,114.26576432,0.00013937,2]
[408378277,1773531419488,500.0,0.00013899,2]
[408378278,1773531419721,500.0,0.00013899,2]
[408378279,1773531427655,8885.74423568,0.00013475,2]
[408378280,1773531427677,3521.58576432,0.00013475,2]
[408378281,1773531438088,233.00607819,0.00013935,2]
[408378282,1773531444285,233.00607818,0.00013936,2]
[408378283,1773531446867,224.02202028,0.00013937,2]
[408378284,1773531449992,233.00607818,0.00013937,2]
[408378285,1773531450474,5555.38398085,0.00013937,2]
[408378286,1773531450497,3961.61015249,0.00013937,2]
[408378287,1773531459784,6038.39984751,0.00013356,2]
[408378288,1773531459806,2140.08015249,0.00013356,2]
[408378289,1773531487941,7021.0620688,0.00013937,2]
[408378290,1773531493487,155.35,0.00013316,2]
[408378291,1773531500835,-229.22282381,0.00013,2]
[408378292,1773531509205,-500.0,0.00013862,2]
[408378293,1773531509233,-150.0,0.00013862,2]
[408378294,1773531509260,-500.0,0.00013862,2]
[408378295,1773531509288,-150.0,0.00013862,2]
[408378296,1773531519728,1500.0,0.0001308,2]
[408378297,1773531548502,10000.01,7.945e-05,2]
[408378298,1773531568763,491.54511265,0.00013906,2]
[408378299,1773531580027,272.00222498,0.00013862,2]
[408378300,1773531580186,500.0,0.00013862,2]
[408378301,1773531580846,150.0,0.00013862,2]
[408378302,1773531581462,500.0,0.00013862,2]
[408378303,1773531581833,500.0,0.00013862,2]
[408378304,1773531582568,150.0,0.00013862,2]
[408378305,1773531596286,815.99709557,0.00013917,2]
[408378306,1773531601279,212.0,0.00013916,2]
[408378307,1773531601537,1200.0,0.00013916,2]
[408378308,1773531601565,300.0,0.00013916,2]
[408378309,1773531615424,4908.4655668,0.000139,2]
[408378310,1773531615446,3687.14665289,0.000139,2]
[408378311,1773531624859,-500.0,0.00013917,2]
[408378312,1773531624888,-150.0,0.00013917,2]
[408378313,1773531624917,-500.0,0.00013917,2]
[408378314,1773531624947,-500.0,0.00013917,2]
[408378315,1773531624976,-150.20209622,0.00013917,2]
[408378316,1773531625006,-500.0,0.00013917,2]
[408378317,1773531625036,-500.0,0.00013917,2]
[408378318,1773531625063,-265.0,0.00013917,2]
[408378319,1773531625089,-367.1844389,0.00013922,2]
[408378320,1773531625115,-600.0,0.00013926,2]
[408378321,1773531625142,-500.0,0.00013926,2]
[408378322,1773531627622,-1105.0,0.00013936,2]
[408378323,1773531627651,-300.0,0.00013936,2]
[408378324,1773531627681,-300.0,0.00013936,2]
[408378325,1773531661237,300.0,0.00013936,2]
[408378326,1773531666909,165.0,0.00013937,2]
[408378327,1773531669096,158.0,0.00013937,2]
[408378328,1773531677110,9377.01,0.00013103,2]
[408378329,1773531677133,622.99,0.00013103,2]
[408378330,1773531691590,500.0,0.00013762,2]
[408378331,1773531691733,500.0,0.00013762,2]
[408378332,1773531691886,500.0,0.00013817,2]
[408378333,1773531692039,355.62536793,0.00013872,2]
[408378334,1773531692115,500.0,0.00013817,2]
[408378335,1773531692277,500.0,0.00013762,2]
[408378336,1773531692303,451.97192574,0.00013872,2]
[408378337,1773531692476,500.0,0.00013817,2]
[408378338,1773531692642,356.83426636,0.00013872,2]
[408378339,1773531692764,500.0,0.00013762,2]
[408378340,1773531692791,500.0,0.00013762,2]
[408378341,1773531692842,546.0,0.00013762,2]
[408378342,1773531692923,500.0,0.00013817,2]
[408378343,1773531693025,546.0,0.00013817,2]
[408378344,1773531693095,500.0,0.00013872,2]
[408378345,1773531693223,546.0,0.00013872,2]
[408378346,1773531693264,500.0,0.00013926,2]
[408378347,1773531693378,546.0,0.00013926,2]
[408378348,1773531693497,500.0,0.00013817,2]
[408378349,1773531693737,28.58843997,0.00013872,2]
[408378350,1773531693760,471.41156003,0.00013872,2]
[408378351,1773531694115,500.0,0.00013926,2]
[408378352,1773531694591,150.0,0.00013762,2]
[408378353,1773531695850,500.0,0.00013762,2]
[408378354,1773531696074,500.0,0.00013817,2]
[408378355,1773531696164,500.0,0.00013872,2]
[408378356,1773531696423,500.0,0.00013926,2]
[408378357,1773531706888,150.0,0.00013074,2]
[408378358,1773531721241,300.0,0.00013936,2]
[408378359,1773531721540,300.0,0.00013936,2]
[408378360,1773531722491,150.0,0.00013936,2]
[408378361,1773531723842,300.0,0.00013936,2]
[408378362,1773531726646,165.0,0.00013937,2]
[408378363,1773531781230,300.0,0.00013936,2]
[408378364,1773531786662,165.0,0.00013937,2]
[408378365,1773531787627,500.0,0.00013899,2]
[408378366,1773531795382,261.29199835,0.00013837,2]
[408378367,1773531806796,500.0,0.00013754,2]
[408378368,1773531806824,150.0,0.00013754,2]
[408378369,1773531806858,525.17021168,0.00013809,2]
[408378370,1773531806885,150.0,0.00013809,2]
[408378371,1773531807029,150.0,0.00013864,2]
[408378372,1773531807207,150.0,0.00013754,2]
[408378373,1773531807235,150.0,0.00013918,2]
[408378374,1773531808469,500.0,0.00013754,2]
[408378375,1773531808562,500.0,0.00013754,2]
[408378376,1773531808642,500.0,0.00013809,2]
[408378377,1773531808766,500.0,0.00013809,2]
[408378378,1773531808880,406.55779082,0.00013864,2]
[408378379,1773531809086,105.57843912,0.00013864,2]
[408378380,1773531809112,54.29977108,0.00013864,2]
[408378381,1773531809241,150.0,0.00013754,2]
[408378382,1773531841176,300.0,0.00013936,2]
[408378383,1773531841755,217.6,0.00013092,2]
[408378384,1773531847275,165.0,0.00013937,2]
[408378385,1773531873366,445.409769,0.00013867,2]
[408378386,1773531901153,300.0,0.00013936,2]
[408378387,1773531901185,300.0,0.00013936,2]
[408378388,1773531901282,1200.0,0.00013936,2]
[408378389,1773531903017,150.0,0.00013936,2]
[408378390,1773531903720,300.0,0.00013936,2]
[408378391,1773531906185,165.0,0.00013937,2]
[408378392,1773531919445,3240.0,0.00013425,2]
[408378393,1773531942793,150.0,0.00013754,2]
[408378394,1773531942945,500.0,0.00013754,2]
[408378395,1773531942972,150.0,0.00013809,2]
[408378396,1773531943109,210.26450051,0.00013864,2]
[408378397,1773531943138,500.0,0.00013809,2]
[408378398,1773531943308,500.0,0.00013864,2]
[408378399,1773531943336,150.0,0.00013754,2]
[408378400,1773531943481,500.0,0.00013918,2]
[408378401,1773531946367,150.0,0.00013754,2]
[408378402,1773531946524,150.0,0.00013809,2]
[408378403,1773531946955,52.43595941,0.00013864,2]
[408378404,1773531946979,97.56404059,0.00013864,2]
[408378405,1773531947023,500.0,0.00013754,2]
[408378406,1773531947124,500.0,0.00013809,2]
[408378407,1773531947153,150.0,0.00013918,2]
[408378408,1773531947179,500.0,0.00013754,2]
[408378409,1773531947280,500.0,0.00013864,2]
[408378410,1773531947337,500.0,0.00013809,2]
[408378411,1773531947628,500.0,0.00013918,2]
[408378412,1773531947801,500.0,0.00013754,2]
[408378413,1773531947830,500.0,0.00013754,2]
[408378414,1773531947860,500.0,0.00013864,2]
[408378415,1773531947892,500.0,0.00013809,2]
[408378416,1773531947919,500.0,0.00013809,2]
[408378417,1773531947948,500.0,0.00013918,2]
[408378418,1773531947976,500.0,0.00013864,2]
[408378419,1773531948003,500.0,0.00013864,2]
[408378420,1773531948090,500.0,0.00013918,2]
[408378421,1773531948117,500.0,0.00013918,2]
[408378422,1773531948640,500.0,0.00013754,2]
[408378423,1773531948793,500.0,0.00013809,2]
[408378424,1773531948955,500.0,0.00013864,2]
[408378425,1773531949125,252.44595941,0.00013918,2]
[408378426,1773531949152,247.55404059,0.00013918,2]
[408378427,1773531949249,500.0,0.00013754,2]
[408378428,1773531949393,500.0,0.00013754,2]
[408378429,1773531949421,500.0,0.00013809,2]
[408378430,1773531949555,551.25822357,0.00013809,2]
[408378431,1773531949594,500.0,0.00013864,2]
[408378432,1773531949756,500.0,0.00013918,2]
[408378433,1773531950628,500.0,0.00013754,2]
[408378434,1773531950657,2917.449431,0.00013867,2]
[408378435,1773531950858,500.0,0.00013809,2]
[408378436,1773531951038,500.0,0.00013864,2]
[408378437,1773531951065,500.0,0.00013754,2]
[408378438,1773531951199,500.0,0.00013918,2]
[408378439,1773531951227,500.0,0.00013754,2]
[408378440,1773531951252,500.0,0.00013809,2]
[408378441,1773531951368,283.74830484,0.00013864,2]
[408378442,1773531951389,216.25169516,0.00013864,2]
[408378443,1773531951416,500.0,0.00013809,2]
[408378444,1773531951532,253.16351353,0.00013918,2]
[408378445,1773531951562,437.81160901,0.00013864,2]
[408378446,1773531951926,500.0,0.00013754,2]
[408378447,1773531952075,600.74757442,0.00013809,2]
[408378448,1773531952359,500.0,0.00013754,2]
[408378449,1773531952771,500.0,0.00013809,2]
[408378450,1773531952931,500.0,0.00013864,2]
[408378451,1773531953085,500.0,0.00013918,2]
[408378452,1773531957216,1035.39,0.00013047,2]
[408378453,1773531957423,1035.39,0.00013373,2]
[408378454,1773531957623,1035.39,0.00013699,2]
[408378455,1773531961172,300.0,0.00013936,2]
[408378456,1773531966280,2085.86560788,0.00013936,2]
[408378457,1773531966308,6479.42911209,0.00013936,2]
[408378458,1773531973650,166.66,0.00013432,2]
[408378459,1773531973861,166.66,0.00013876,2]
[408378460,1773531986699,500.0,0.00013041,2]
[408378461,1773532016372,150.0,0.00013754,2]
[408378462,1773532016589,164.48543571,0.00013809,2]
[408378463,1773532017811,455.0,0.00013754,2]
[408378464,1773532017968,455.0,0.00013809,2]
[408378465,1773532018097,1462.7754522,0.00013936,2]
[408378466,1773532018121,10000.01,0.00013936,2]
[408378467,1773532018147,10000.01,0.00013936,2]
[408378468,1773532018173,10000.01,0.00013936,2]
[408378469,1773532018210,10000.01,0.00013936,2]
[408378470,1773532018348,455.0,0.00013864,2]
[408378471,1773532018414,177.62322685,0.00013754,2]
[408378472,1773532027114,4691.67,0.0001303,2]
[408378473,1773532029148,-270.60486166,0.00013918,2]
[408378474,1773532094381,200.0,0.00012974,2]
[408378475,1773532123873,500.0,0.00012963,2]
[408378476,1773532128617,6784.77,0.00012963,2]
[408378477,1773532167077,-200.0,0.000136,4]
[408378478,1773532167098,-5000.0,0.00013625,2]
[408378479,1773532167119,-250.0,0.00013649,2]
[408378480,1773532167140,-3583.99761619,0.00013672,2]
[408378481,1773532168445,2000.0,0.00012963,2]
[408378482,1773532195242,-1416.00238381,0.00013672,2]
[408378483,1773532195275,-2168.00523238,0.00013672,2]
[408378484,1773532195467,-2831.99476762,0.00013672,2]
[408378485,1773532195599,-5000.0,0.00013672,2]
[408378486,1773532198194,0.01,0.00012963,2]
[408378487,1773532198379,994.6,0.00012963,2]
[408378488,1773532209203,225.382097,0.00013234,2]
[408378489,1773532225583,-200.0,0.00013699,2]
[408378490,1773532225614,-4600.01,0.00013699,2]
[408378491,1773532225785,-399.99,0.00013699,2]
[408378492,1773532225817,-263.0,0.00013699,2]
[408378493,1773532225849,-400.0,0.000137,5]
[408378494,1773532225881,-300.0,0.00013711,2]
[408378495,1773532225911,-300.0,0.00013711,2]
[408378496,1773532225941,-300.0,0.00013711,2]
[408378497,1773532225971,-307.02162716,0.00013711,2]
[408378498,1773532226000,-250.0,0.00013711,2]
[408378499,1773532226388,-5000.0,0.00013712,2]
[408378500,1773532226528,-5000.0,0.00013712,2]
[408378501,1773532226665,-300.0,0.00013753,2]
[408378502,1773532226696,-1200.0,0.00013753,2]
[408378503,1773532226725,-500.0,0.00013754,2]
[408378504,1773532226753,-150.0,0.00013754,2]
[408378505,1773532226782,-150.0,0.00013754,2]
[408378506,1773532226811,-150.0,0.00013754,2]
[408378507,1773532226839,-150.0,0.00013754,2]
[408378508,1773532226868,-155.10007768,0.00013754,2]
[408378509,1773532226896,-150.0,0.00013754,2]
[408378510,1773532226924,-500.0,0.00013754,2]
[408378511,1773532226952,-500.0,0.00013754,2]
[408378512,1773532226980,-500.0,0.00013754,2]
[408378513,1773532227010,-150.0,0.00013754,2]
[408378514,1773532227039,-150.81923528,0.00013754,2]
[408378515,1773532227067,-150.0,0.00013754,2]
[408378516,1773532227097,-138.17137408,0.00013754,2]
[408378517,1773532228502,-11.82862592,0.00013754,2]
[408378518,1773532228532,-500.0,0.00013754,2]
[408378519,1773532228561,-150.0,0.00013754,2]
[408378520,1773532228589,-150.0,0.00013754,2]
[408378521,1773532228619,-500.0,0.00013754,2]
[408378522,1773532228648,-600.0,0.000138,5]
[408378523,1773532228677,-500.0,0.00013809,2]
[408378524,1773532228706,-150.14054899,0.00013809,2]
[408378525,1773532228734,-150.38339506,0.00013809,2]
[408378526,1773532228762,-150.0,0.00013809,2]
[408378527,1773532228791,-150.0,0.00013809,2]
[408378528,1773532228819,-150.0,0.00013809,2]
[408378529,1773532228847,-500.0,0.00013809,2]
[408378530,1773532228875,-500.0,0.00013809,2]
[408378531,1773532228904,-500.0,0.00013809,2]
[408378532,1773532228932,-151.17604602,0.00013809,2]
[408378533,1773532228960,-150.5231356,0.00013809,2]
[408378534,1773532229257,-150.36304931,0.00013809,2]
[408378535,1773532229285,-506.83498786,0.00013809,2]
[408378536,1773532229315,-150.0,0.00013809,2]
[408378537,1773532229343,-207.11816574,0.00013809,2]
[408378538,1773532229371,-500.0,0.00013809,2]
[408378544,1773532231474,-827.08473548,0.00013836,2]
[408378546,1773532231485,-5644.98866756,0.00013836,2]
[408378547,1773532231551,-706.82415317,0.00013836,2]
[408378548,1773532231563,-2305.12526452,0.00013836,2]
[408378549,1773532231574,-3077.67226364,0.00013836,2]
[408378550,1773532231585,-310057.75151754,0.00013836,2]
[408378551,1773532231596,-36882.61208241,0.00013836,2]
[408378552,1773532231607,-6454.32350437,0.00013836,2]
[408378553,1773532231618,-92759.7124838,0.00013836,2]
[408378554,1773532231629,-1254.41808677,0.00013836,2]
[408378555,1773532231640,-1309.68764366,0.00013836,2]
[408378557,1773532231651,-3248.41634028,0.00013836,2]
[408378559,1773532231682,-2564.78175118,0.00013836,2]
[408378560,1773532231695,-700.36150344,0.00013836,2]
[408378562,1773532231707,-864.06206667,0.00013836,2]
[408378564,1773532231718,-424.84285358,0.00013836,2]
[408378566,1773532231729,-343.29292514,0.00013836,2]
[408378568,1773532231739,-326.03172292,0.00013836,2]
[408378570,1773532231751,-267.37735194,0.00013836,2]
[408378576,1773532233179,249.49,0.00010389,2]
[408378577,1773532233375,249.49,0.00011428,2]
[408378578,1773532233785,249.49,0.00012467,2]
[408378579,1773532234020,249.49,0.00013506,2]
[408378586,1773532237715,-1813.08000733,0.00013836,2]
[408378587,1773532237728,-45729.8184746,0.00013836,2]
[408378588,1773532237738,-153.09936437,0.00013837,2]
[408378589,1773532237750,-500.0,0.00013864,2]
[408378591,1773532237760,-500.0,0.00013864,2]
[408378593,1773532237769,-150.0,0.00013864,2]
[408378595,1773532237778,-150.0,0.00013864,2]
[408378597,1773532237788,-200.0,0.00013864,2]
[408378598,1773532237798,-500.0,0.00013864,2]
[408378599,1773532237808,-500.0,0.00013864,2]
[408378601,1773532237818,-500.0,0.00013864,2]
[408378603,1773532237827,-150.0,0.00013864,2]
[408378605,1773532237836,-500.0,0.00013864,2]
[408378607,1773532237846,-900.0,0.000139,5]
[408378609,1773532237855,-1965.0,0.00013914,2]
[408378611,1773532237864,-184.39513834,0.00013918,2]
[408378613,1773532237874,-552.0,0.00013918,2]
[408378615,1773532237883,-300.0,0.00013918,2]
[408378617,1773532237892,-300.0,0.00013918,2]
[408378619,1773532237901,-500.0,0.00013918,2]
[408378621,1773532237910,-522.06367637,0.0001393,2]
[408378622,1773532237920,-150.0,0.00013935,2]
[408378623,1773532237931,-300.0,0.00013935,2]
[408378624,1773532237941,-56971.3616478,0.00013936,2]
[408378625,1773532237951,-5618.6425,0.00013936,2]
[408378626,1773532237961,-2500.0,0.00013936,2]
[408378627,1773532237972,-1000.0,0.00013936,2]
[408378628,1773532237982,-500.0,0.00013936,2]
[408378629,1773532237992,-200.0,0.00013937,2]
[408378630,1773532238001,-500.0,0.00013937,2]
[408378631,1773532238011,-500.0,0.00013937,2]
[408378632,1773532238020,-500.0,0.00013937,2]
[408378633,1773532238030,-500.0,0.00013937,2]
[408378634,1773532238039,-500.0,0.00013937,2]
[408378635,1773532238049,-500.0,0.00013937,2]
[408378636,1773532238058,-500.0,0.00013937,2]
[408378637,1773532238067,-500.0,0.00013937,2]
[408378638,1773532238076,-500.0,0.00013937,2]
[408378639,1773532238086,-500.0,0.00013937,2]
[408378640,1773532238095,-500.0,0.00013937,2]
[408378641,1773532238104,-500.0,0.00013937,2]
[408378642,1773532238114,-500.0,0.00013937,2]
[408378643,1773532238123,-500.0,0.00013937,2]
[408378644,1773532238132,-500.0,0.00013937,2]
[408378645,1773532238141,-369.42095786,0.00013937,2]
[408378646,1773532238151,-151.0,0.00013937,2]
[408378647,1773532238160,-151.0,0.00013937,2]
[408378648,1773532238169,-151.0,0.00013937,2]
[408378649,1773532238178,-151.0,0.00013937,2]
[408378650,1773532238188,-151.0,0.00013937,2]
[408378651,1773532238197,-151.0,0.00013937,2]
[408378652,1773532238206,-151.0,0.00013937,2]
[408378653,1773532238215,-151.0,0.00013937,2]
[408378654,1773532238224,-151.0,0.00013937,2]
[408378655,1773532238236,-151.0,0.00013937,2]
[408378656,1773532238245,-151.0,0.00013937,2]
[408378657,1773532238255,-151.0,0.00013937,2]
[408378658,1773532238265,-151.0,0.00013937,2]
[408378659,1773532238415,-151.0,0.00013937,2]
[408378660,1773532238425,-151.0,0.00013937,2]
[408378661,1773532238434,-151.0,0.00013937,2]
[408378662,1773532238443,-151.0,0.00013937,2]
[408378663,1773532238452,-151.0,0.00013937,2]
[408378664,1773532238462,-151.0,0.00013937,2]
[408378665,1773532238471,-151.0,0.00013937,2]
[408378666,1773532238480,-151.0,0.00013937,2]
[408378667,1773532238490,-151.0,0.00013937,2]
[408378668,1773532238499,-151.0,0.00013937,2]
[408378669,1773532238508,-151.0,0.00013937,2]
[408378670,1773532238517,-151.0,0.00013937,2]
[408378671,1773532238526,-151.0,0.00013937,2]
[408378672,1773532238535,-151.0,0.00013937,2]
[408378673,1773532238544,-151.0,0.00013937,2]
[408378674,1773532238553,-151.0,0.00013937,2]
[408378675,1773532238562,-151.0,0.00013937,2]
[408378676,1773532238572,-151.0,0.00013937,2]
[408378677,1773532238581,-500.0,0.00013937,2]
[408378678,1773532238590,-193.0,0.00013937,2]
[408378679,1773532238599,-168.65477255,0.00013937,2]
[408378680,1773532238609,-200.0,0.00013937,2]
[408378681,1773532238618,-396.7694005,0.00013937,2]
[408378682,1773532238627,-851.83234735,0.00013937,2]
[408378683,1773532238636,-3176.73340397,0.00013937,2]
[408378684,1773532238645,-1588.0,0.00013942,2]
[408378685,1773532238653,-299.0,0.0001396,2]
[408378686,1773532238663,-1040.0,0.00013969,2]
[408378687,1773532238672,-500.0,0.00013973,2]
[408378688,1773532238681,-500.0,0.00013973,2]
[408378689,1773532238690,-164.047863,0.00013973,2]
[408378690,1773532238699,-367.07901164,0.00013973,2]
[408378691,1773532238708,-500.0,0.00013973,2]
[408378692,1773532238717,-456.67098084,0.00013973,2]
[408378693,1773532238727,-500.0,0.00013973,2]
[408378694,1773532238736,-167.24524863,0.00013973,2]
[408378695,1773532238745,-500.0,0.00013973,2]
[408378696,1773532238755,-150.0,0.00013973,2]
[408378697,1773532238764,-500.0,0.00013973,2]